{"text_format":"1","workbook":"xlsx","n_sheets":6,"sheets":["Итог","Отметка1","Отметка2","Отметка3","Отметка4","Отметка5"],"not_rendered":{"charts":0,"images":0,"macros":0,"external_links":0,"defined_names":2,"comments":0,"pivot_tables":0},"unopened":[],"bounds":{"document_bytes":16777216,"sheet_cells":100000,"rows_first":2000,"rows_last":500,"rows_between":2000,"halvings":0,"cell_chars":16384,"cell_head_chars":4096},"cells_cut":0,"cells_raw":0,"read":"whole","date_system":"1900"}

{"sheet":"Итог","index":0,"n_rows":24,"n_cols":9,"rows_kept":24,"cut":false,"hidden":false,"merged":[[0,8,23,8]]}
["№ листа по названию","Название листа",null,"№ листа ","Название листа по номеру",null,null,{"$f":"IFERROR(INDEX(Оглавление,ROW(E1)),\"\")","v":"Итог"},"Это список листов который обнавляется при пересчете формул."]
[{"$f":"MATCH($B$2,$H:$H,)","v":1},"Итог",null,3,{"$f":"INDEX(H:H,D2)","v":"Отметка2"},null,null,{"$f":"IFERROR(INDEX(Оглавление,ROW(E2)),)","v":"Отметка1"}]
[null,null,null,null,null,null,null,{"$f":"IFERROR(INDEX(Оглавление,ROW(E3)),)","v":"Отметка2"}]
[null,null,null,null,null,null,null,"Отметка3"]
[null,null,null,null,null,null,null,"Отметка4"]
[null,null,null,null,null,null,null,"Отметка5"]
[null,null,null,null,null,null,null,0]
[null,null,null,null,null,null,null,0]
[null,null,null,null,null,null,null,0]
[null,null,null,null,null,null,null,0]
[null,null,null,null,null,null,null,0]
[null,null,null,null,null,null,null,0]
[null,null,null,null,null,null,null,0]
[null,null,null,null,null,null,null,0]
[null,null,null,null,null,null,null,0]
[null,null,null,null,null,null,null,0]
[null,null,null,null,null,null,null,0]
[null,null,null,null,null,null,null,0]
[null,null,null,null,null,null,null,0]
[null,null,null,null,null,null,null,0]
[null,null,null,null,null,null,null,0]
[null,null,null,null,null,null,null,0]
[null,null,null,null,null,null,null,0]
[null,null,null,null,null,null,null,0]

{"sheet":"Отметка1","index":1,"n_rows":9,"n_cols":1,"rows_kept":9,"cut":false,"hidden":false,"merged":[]}
[22]
[5]
[17]
[39]
[11]
[33]
[26]
[30]
[40]

{"sheet":"Отметка2","index":2,"n_rows":6,"n_cols":1,"rows_kept":6,"cut":false,"hidden":false,"merged":[]}
[39]
[22]
[10]
[1]
[3]
[8]

{"sheet":"Отметка3","index":3,"n_rows":10,"n_cols":1,"rows_kept":10,"cut":false,"hidden":false,"merged":[]}
[4]
[40]
[12]
[3]
[29]
[33]
[26]
[31]
[2]
[25]

{"sheet":"Отметка4","index":4,"n_rows":19,"n_cols":1,"rows_kept":19,"cut":false,"hidden":false,"merged":[]}
[2]
[3]
[5]
[6]
[4]
[1]
[7]
[9]
[8]
[10]
[12]
[11]
[33]
[13]
[40]
[22]
[34]
[35]
[24]

{"sheet":"Отметка5","index":5,"n_rows":17,"n_cols":1,"rows_kept":17,"cut":false,"hidden":false,"merged":[]}
[5]
[1]
[3]
[2]
[6]
[4]
[9]
[7]
[8]
[10]
[22]
[11]
[33]
[40]
[29]
[38]
[24]